[Event "*** Titled Tuesday Blitz"]
[Site "Chess.com"]
[Date "2020.04.21"]
[Round "1"]
[White "amiralfio"]
[Black "chenxiaoyuer"]
[Result "1-0"]
[WhiteElo "2526"]
[BlackElo "2125"]
[TimeControl "180+1"]
[EndTime "10:09:14 PDT"]
[Termination "amiralfio won by resignation"]

1. Nf3 {[%clk 0:02:49.2]} 1... Nf6 {[%clk 0:02:54.9]} 2. c4 {[%clk 0:02:47.2]}
2... g6 {[%clk 0:02:49.6]} 3. b3 {[%clk 0:02:46.3]} 3... Bg7 {[%clk 0:02:38.4]}
4. Bb2 {[%clk 0:02:39.1]} 4... O-O {[%clk 0:02:37.9]} 5. g3 {[%clk 0:02:24.5]}
5... d6 {[%clk 0:02:25.1]} 6. d4 {[%clk 0:02:08.4]} 6... b6 {[%clk 0:02:14.8]}
7. Bg2 {[%clk 0:02:05.5]} 7... Bb7 {[%clk 0:02:14.7]} 8. O-O {[%clk 0:02:04.6]}
8... Nbd7 {[%clk 0:02:14.7]} 9. Nc3 {[%clk 0:01:41]} 9... e5 {[%clk 0:02:05]}
10. dxe5 {[%clk 0:01:38.3]} 10... dxe5 {[%clk 0:02:05.2]} 11. Qd2 {[%clk
0:01:35.9]} 11... Qe7 {[%clk 0:01:57.2]} 12. Rfd1 {[%clk 0:01:27.8]} 12... Rfd8
{[%clk 0:01:56]} 13. Nd5 {[%clk 0:01:08.1]} 13... Nxd5 {[%clk 0:01:52]} 14. cxd5
{[%clk 0:01:09]} 14... e4 {[%clk 0:01:23]} 15. Nd4 {[%clk 0:00:46.2]} 15... Nf6
{[%clk 0:01:10.5]} 16. Qf4 {[%clk 0:00:31.3]} 16... Bxd5 {[%clk 0:01:03.1]} 17.
Nb5 {[%clk 0:00:20.5]} 17... c6 {[%clk 0:00:50.7]} 18. Nc7 {[%clk 0:00:18.1]}
18... Nh5 {[%clk 0:00:45.2]} 19. Nxd5 {[%clk 0:00:18.3]} 19... Rxd5 {[%clk
0:00:40]} 20. Qc1 {[%clk 0:00:06]} 20... Rxd1+ {[%clk 0:00:38.2]} 21. Qxd1
{[%clk 0:00:06.9]} 21... Bxb2 {[%clk 0:00:38.2]} 22. Rb1 {[%clk 0:00:07.8]}
22... Bg7 {[%clk 0:00:32.5]} 23. Qc2 {[%clk 0:00:07.1]} 23... c5 {[%clk
0:00:28]} 24. Bxe4 {[%clk 0:00:06.1]} 24... Rd8 {[%clk 0:00:27.7]} 25. Bf3
{[%clk 0:00:06.5]} 25... g5 {[%clk 0:00:27.3]} 26. Bxh5 {[%clk 0:00:06.1]} 26...
Qd6 {[%clk 0:00:24.1]} 27. Bf3 {[%clk 0:00:05.1]} 27... Qe6 {[%clk 0:00:21.4]}
28. Rd1 {[%clk 0:00:04.3]} 28... Rxd1+ {[%clk 0:00:20.5]} 29. Qxd1 {[%clk
0:00:05.2]} 29... Bd4 {[%clk 0:00:19.9]} 30. e3 {[%clk 0:00:05.5]} 30... Be5
{[%clk 0:00:19.4]} 31. Qd8+ {[%clk 0:00:05.8]} 31... Kg7 {[%clk 0:00:18]} 32.
Qxg5+ {[%clk 0:00:06.2]} 32... Kf8 {[%clk 0:00:17.1]} 33. Qd8+ {[%clk
0:00:06.3]} 33... Kg7 {[%clk 0:00:17]} 34. Qd2 {[%clk 0:00:07]} 34... Qf6 {[%clk
0:00:16.2]} 35. Kg2 {[%clk 0:00:07.2]} 35... b5 {[%clk 0:00:15.8]} 36. Qd3
{[%clk 0:00:06.6]} 36... a6 {[%clk 0:00:13.9]} 37. Be4 {[%clk 0:00:06.6]} 37...
h6 {[%clk 0:00:13.2]} 38. h4 {[%clk 0:00:06.4]} 38... Qe6 {[%clk 0:00:13]} 39.
Qe2 {[%clk 0:00:06.4]} 39... c4 {[%clk 0:00:12.5]} 40. bxc4 {[%clk 0:00:06.1]}
40... bxc4 {[%clk 0:00:12.4]} 41. Bc2 {[%clk 0:00:05.9]} 41... Bf6 {[%clk
0:00:11.5]} 42. Qf3 {[%clk 0:00:05]} 42... c3 {[%clk 0:00:11.1]} 43. Qe2 {[%clk
0:00:05.3]} 43... Qd6 {[%clk 0:00:10.8]} 44. Qg4+ {[%clk 0:00:04.6]} 44... Kh8
{[%clk 0:00:09.2]} 45. Qe4 {[%clk 0:00:04.8]} 45... Kg7 {[%clk 0:00:08.9]} 46.
Qh7+ {[%clk 0:00:04.7]} 46... Kf8 {[%clk 0:00:09.1]} 47. Qxh6+ {[%clk
0:00:05.4]} 47... Ke7 {[%clk 0:00:09.2]} 48. Qh7 {[%clk 0:00:05.2]} 48... Qd2
{[%clk 0:00:08.9]} 49. Qe4+ {[%clk 0:00:05.4]} 49... Kf8 {[%clk 0:00:08.1]} 50.
h5 {[%clk 0:00:04.5]} 50... Kg7 {[%clk 0:00:05.8]} 51. Qh7+ {[%clk 0:00:04.3]}
51... Kf8 {[%clk 0:00:05.5]} 52. h6 {[%clk 0:00:05.2]} 52... Ke7 {[%clk
0:00:03.9]} 53. Qd3 {[%clk 0:00:05.5]} 53... Kf8 {[%clk 0:00:03.9]} 54. g4
{[%clk 0:00:03.5]} 54... Qxd3 {[%clk 0:00:03.5]} 55. Bxd3 {[%clk 0:00:03.4]}
55... Bg5 {[%clk 0:00:03.7]} 56. h7 {[%clk 0:00:03.9]} 56... Kg7 {[%clk
0:00:03.6]} 57. f4 {[%clk 0:00:04.4]} 57... Be7 {[%clk 0:00:03.2]} 58. Kf3
{[%clk 0:00:03.8]} 58... Bb4 {[%clk 0:00:02.9]} 59. Ke2 {[%clk 0:00:02.9]} 59...
Ba3 {[%clk 0:00:03.1]} 60. Kd1 {[%clk 0:00:03.3]} 60... Bb2 {[%clk 0:00:04]} 61.
Kc2 {[%clk 0:00:03.9]} 61... Ba3 {[%clk 0:00:04.9]} 62. Bxa6 {[%clk 0:00:04.2]}
62... Bc5 {[%clk 0:00:05.6]} 63. Bd3 {[%clk 0:00:05.1]} 63... Bxe3 {[%clk
0:00:05.6]} 64. Kxc3 {[%clk 0:00:06]} 64... Bxf4 {[%clk 0:00:05.9]} 65. a4
{[%clk 0:00:05.2]} 65... Be3 {[%clk 0:00:05.8]} 66. Bf5 {[%clk 0:00:05.1]} 66...
Ba7 {[%clk 0:00:05.4]} 67. Kc4 {[%clk 0:00:06]} 67... Bg1 {[%clk 0:00:06.1]} 68.
Kb5 {[%clk 0:00:06.5]} 68... Ba7 {[%clk 0:00:05.7]} 69. a5 {[%clk 0:00:07.4]}
69... Bg1 {[%clk 0:00:06.4]} 70. a6 {[%clk 0:00:06.7]} 70... Ba7 {[%clk
0:00:06.8]} 71. Kc6 {[%clk 0:00:06.5]} 71... Bg1 {[%clk 0:00:06.4]} 72. Kb7
{[%clk 0:00:06.8]} 72... Be3 {[%clk 0:00:07.1]} 73. a7 {[%clk 0:00:07.2]} 73...
Bxa7 {[%clk 0:00:07.6]} 74. Kxa7 {[%clk 0:00:07.9]} 74... f6 {[%clk 0:00:08.3]}
75. Kb6 {[%clk 0:00:07.9]} 75... Kh8 {[%clk 0:00:09.2]} 76. Kc6 {[%clk
0:00:08.1]} 76... Kg7 {[%clk 0:00:10.1]} 77. Kd6 {[%clk 0:00:08.4]} 77... Kh8
{[%clk 0:00:11]} 78. Ke6 {[%clk 0:00:08.7]} 78... Kg7 {[%clk 0:00:11.9]} 79. Ke7
{[%clk 0:00:08.4]} 79... Kh8 {[%clk 0:00:12.2]} 80. Ke6 {[%clk 0:00:07.9]} 80...
Kg7 {[%clk 0:00:12.1]} 81. Bd3 {[%clk 0:00:08.3]} 81... Kh8 {[%clk 0:00:11.8]}
82. Kf7 {[%clk 0:00:07.4]} 82... f5 {[%clk 0:00:11.4]} 83. gxf5 {[%clk
0:00:08.3]} 83... Kxh7 {[%clk 0:00:11.5]} 84. f6+ {[%clk 0:00:09.2]} 84... Kh8
{[%clk 0:00:11.8]} 85. Ke7 {[%clk 0:00:09.5]} 85... Kg8 {[%clk 0:00:12.1]} 86.
f7+ {[%clk 0:00:09.9]} 86... Kg7 {[%clk 0:00:12.3]} 1-0

[Event "*** Titled Tuesday Blitz"]
[Site "Chess.com"]
[Date "2020.04.21"]
[Round "1"]
[White "Ind1anStar"]
[Black "Lysiak_Poltorak"]
[Result "0-1"]
[WhiteElo "2617"]
[BlackElo "2322"]
[TimeControl "180+1"]
[EndTime "10:09:29 PDT"]
[Termination "Lysiak_Poltorak won by resignation"]

1. c4 {[%clk 0:03:00.9]} 1... f5 {[%clk 0:02:57]} 2. g3 {[%clk 0:02:57.2]} 2...
Nf6 {[%clk 0:02:56.7]} 3. Bg2 {[%clk 0:02:57.1]} 3... d6 {[%clk 0:02:56.8]} 4.
Nc3 {[%clk 0:02:57.3]} 4... e6 {[%clk 0:02:54.6]} 5. Nf3 {[%clk 0:02:57.5]} 5...
Be7 {[%clk 0:02:54.4]} 6. O-O {[%clk 0:02:57.8]} 6... O-O {[%clk 0:02:54.6]} 7.
d3 {[%clk 0:02:58.1]} 7... Nc6 {[%clk 0:02:49.4]} 8. Rb1 {[%clk 0:02:57.6]} 8...
a5 {[%clk 0:02:48.9]} 9. a3 {[%clk 0:02:57.7]} 9... e5 {[%clk 0:02:09.6]} 10. b4
{[%clk 0:02:57]} 10... axb4 {[%clk 0:02:09.6]} 11. axb4 {[%clk 0:02:57.3]} 11...
Qe8 {[%clk 0:02:07]} 12. e3 {[%clk 0:02:52.6]} 12... Nd8 {[%clk 0:02:00.8]} 13.
Nd2 {[%clk 0:02:50.6]} 13... Nf7 {[%clk 0:01:56.1]} 14. Bb2 {[%clk 0:02:43.3]}
14... Ng5 {[%clk 0:01:52.1]} 15. f4 {[%clk 0:02:40]} 15... Nf7 {[%clk
0:01:51.6]} 16. h3 {[%clk 0:02:34.5]} 16... Be6 {[%clk 0:01:50.2]} 17. Ra1
{[%clk 0:02:28]} 17... Rxa1 {[%clk 0:01:45.4]} 18. Bxa1 {[%clk 0:02:28.2]} 18...
c6 {[%clk 0:01:46.3]} 19. b5 {[%clk 0:02:27.6]} 19... Qd7 {[%clk 0:01:44.4]} 20.
Kh2 {[%clk 0:02:25.8]} 20... Ra8 {[%clk 0:01:42.4]} 21. Bb2 {[%clk 0:02:24.2]}
21... d5 {[%clk 0:01:33.9]} 22. bxc6 {[%clk 0:02:15.8]} 22... bxc6 {[%clk
0:01:33]} 23. cxd5 {[%clk 0:02:09.1]} 23... cxd5 {[%clk 0:01:31.5]} 24. fxe5
{[%clk 0:02:08.9]} 24... Nxe5 {[%clk 0:01:30.6]} 25. Qe2 {[%clk 0:02:07.4]}
25... Bd6 {[%clk 0:01:26.4]} 26. Ra1 {[%clk 0:01:57.3]} 26... Rxa1 {[%clk
0:01:14.7]} 27. Bxa1 {[%clk 0:01:58.2]} 27... h5 {[%clk 0:01:14.9]} 28. Kh1
{[%clk 0:01:43.7]} 28... Ng6 {[%clk 0:01:10.7]} 29. Nf1 {[%clk 0:01:43.5]} 29...
Qc7 {[%clk 0:01:10]} 30. Nb5 {[%clk 0:01:41.9]} 30... Qb6 {[%clk 0:01:04.9]} 31.
Nxd6 {[%clk 0:01:42]} 31... Qxd6 {[%clk 0:01:05.8]} 32. Bxf6 {[%clk 0:01:42]}
32... gxf6 {[%clk 0:01:06.7]} 33. Qxh5 {[%clk 0:01:42.2]} 33... Kg7 {[%clk
0:01:05.8]} 34. Kh2 {[%clk 0:01:37.8]} 34... d4 {[%clk 0:00:54.8]} 35. e4 {[%clk
0:01:18.2]} 35... f4 {[%clk 0:00:54.4]} 36. Qe2 {[%clk 0:01:18.3]} 36... Nh4
{[%clk 0:00:35.1]} 37. e5 {[%clk 0:01:06.5]} 37... fxg3+ {[%clk 0:00:26.6]} 38.
Nxg3 {[%clk 0:00:59.6]} 38... Qxe5 {[%clk 0:00:25.2]} 39. Qxe5 {[%clk
0:00:54.5]} 39... fxe5 {[%clk 0:00:26.1]} 40. Be4 {[%clk 0:00:53.5]} 40... Kf6
{[%clk 0:00:25.4]} 41. Nh1 {[%clk 0:00:49.2]} 41... Bf5 {[%clk 0:00:25.1]} 42.
Nf2 {[%clk 0:00:47.9]} 42... Ng6 {[%clk 0:00:24.3]} 43. Kg3 {[%clk 0:00:44.1]}
43... Nf4 {[%clk 0:00:24.1]} 44. Kf3 {[%clk 0:00:40.2]} 44... Bxh3 {[%clk
0:00:22.1]} 45. Nxh3 {[%clk 0:00:28.1]} 45... Nxh3 {[%clk 0:00:23]} 46. Bc6
{[%clk 0:00:28]} 46... Ng5+ {[%clk 0:00:23.1]} 47. Kg4 {[%clk 0:00:27.7]} 47...
Ne6 {[%clk 0:00:23]} 48. Bb5 {[%clk 0:00:27.6]} 48... Nc5 {[%clk 0:00:22.8]} 49.
Bc4 {[%clk 0:00:27.1]} 49... Nd7 {[%clk 0:00:19.9]} 50. Bd5 {[%clk 0:00:25.8]}
50... Nb6 {[%clk 0:00:19.9]} 51. Be4 {[%clk 0:00:26]} 51... Na4 {[%clk
0:00:19.7]} 52. Bc6 {[%clk 0:00:24.7]} 52... Nb2 {[%clk 0:00:19]} 53. Bb5 {[%clk
0:00:25.2]} 53... Nd1 {[%clk 0:00:18.4]} 54. Ba6 {[%clk 0:00:23.9]} 54... Nf2+
{[%clk 0:00:17.7]} 55. Kf3 {[%clk 0:00:23.2]} 55... Nd1 {[%clk 0:00:17.8]} 56.
Kg4 {[%clk 0:00:21.4]} 56... Nc3 {[%clk 0:00:17.5]} 57. Bc4 {[%clk 0:00:20.7]}
57... e4 {[%clk 0:00:17.3]} 58. dxe4 {[%clk 0:00:18.4]} 58... Ke5 {[%clk
0:00:17.7]} 59. Kf3 {[%clk 0:00:10.4]} 59... Nxe4 {[%clk 0:00:17.9]} 60. Ke2
{[%clk 0:00:10.5]} 60... Nd6 {[%clk 0:00:18.1]} 61. Ba6 {[%clk 0:00:10.3]} 61...
Kd5 {[%clk 0:00:18.2]} 62. Bd3 {[%clk 0:00:08.5]} 62... Kc5 {[%clk 0:00:18.3]}
63. Kd2 {[%clk 0:00:06.2]} 63... Nb7 {[%clk 0:00:18.1]} 64. Be2 {[%clk
0:00:06.4]} 64... Na5 {[%clk 0:00:18.3]} 65. Bd3 {[%clk 0:00:07.3]} 65... Nb3+
{[%clk 0:00:18.2]} 66. Kc2 {[%clk 0:00:08.2]} 66... Kb4 {[%clk 0:00:18.2]} 67.
Be4 {[%clk 0:00:07.9]} 67... Nc5 {[%clk 0:00:18]} 68. Bd3 {[%clk 0:00:08.8]}
68... Ne6 {[%clk 0:00:17.5]} 69. Kd2 {[%clk 0:00:09.3]} 69... Nf4 {[%clk
0:00:17.2]} 70. Kc2 {[%clk 0:00:10.2]} 70... Ng2 {[%clk 0:00:16.8]} 71. Kd2
{[%clk 0:00:10.6]} 71... Ne3 {[%clk 0:00:16.8]} 72. Ke2 {[%clk 0:00:11.5]} 72...
Kc3 {[%clk 0:00:16.4]} 73. Be4 {[%clk 0:00:11.7]} 73... Nc4 {[%clk 0:00:15.9]}
74. Bd3 {[%clk 0:00:12.6]} 74... Ne5 {[%clk 0:00:15.4]} 75. Bf5 {[%clk
0:00:13.5]} 75... Nc6 {[%clk 0:00:10.8]} 76. Bh7 {[%clk 0:00:14.4]} 76... Ne7
{[%clk 0:00:10.6]} 77. Bd3 {[%clk 0:00:14.6]} 77... Nd5 {[%clk 0:00:10.4]} 78.
Bh7 {[%clk 0:00:15]} 78... Nf4+ {[%clk 0:00:09.8]} 79. Kf3 {[%clk 0:00:15.7]}
79... Ne6 {[%clk 0:00:09.7]} 80. Ke2 {[%clk 0:00:16.3]} 80... Nc5 {[%clk
0:00:09.6]} 81. Bf5 {[%clk 0:00:15.1]} 81... Nb3 {[%clk 0:00:09.4]} 82. Bg6
{[%clk 0:00:13.8]} 82... Nc1+ {[%clk 0:00:09.5]} 83. Kd1 {[%clk 0:00:13.8]}
83... Nd3 {[%clk 0:00:08.7]} 84. Ke2 {[%clk 0:00:14.5]} 84... Nf4+ {[%clk
0:00:08.8]} 85. Kd1 {[%clk 0:00:15.4]} 85... Nxg6 {[%clk 0:00:09.7]} 0-1

[Event "*** Titled Tuesday Blitz"]
[Site "Chess.com"]
[Date "2020.04.21"]
[Round "1"]
[White "Forantes"]
[Black "bakki78"]
[Result "1-0"]
[WhiteElo "2433"]
[BlackElo "2778"]
[TimeControl "180+1"]
[EndTime "10:09:37 PDT"]
[Termination "Forantes won on time"]

1. Nf3 {[%clk 0:02:59.9]} 1... g6 {[%clk 0:02:58.1]} 2. d4 {[%clk 0:02:59]} 2...
Nf6 {[%clk 0:02:56.5]} 3. g3 {[%clk 0:02:58.9]} 3... Bg7 {[%clk 0:02:56.6]} 4.
Bg2 {[%clk 0:02:59.1]} 4... O-O {[%clk 0:02:57.1]} 5. O-O {[%clk 0:02:59]} 5...
c6 {[%clk 0:02:57.2]} 6. c4 {[%clk 0:02:58.8]} 6... d6 {[%clk 0:02:57.2]} 7. Nc3
{[%clk 0:02:58.1]} 7... Bf5 {[%clk 0:02:57.2]} 8. Qb3 {[%clk 0:02:53.3]} 8...
Qb6 {[%clk 0:02:56.2]} 9. Re1 {[%clk 0:02:44.7]} 9... Nbd7 {[%clk 0:02:45.9]}
10. e4 {[%clk 0:02:26.5]} 10... Bg4 {[%clk 0:02:44.5]} 11. Be3 {[%clk
0:02:26.1]} 11... Qxb3 {[%clk 0:02:33.4]} 12. axb3 {[%clk 0:02:27]} 12... Bxf3
{[%clk 0:02:32.8]} 13. Bxf3 {[%clk 0:02:26.9]} 13... c5 {[%clk 0:02:33.2]} 14.
Bg2 {[%clk 0:02:21]} 14... Ng4 {[%clk 0:02:28.3]} 15. dxc5 {[%clk 0:02:13]}
15... Nxe3 {[%clk 0:02:27.8]} 16. Rxe3 {[%clk 0:02:11.3]} 16... Nxc5 {[%clk
0:02:26.2]} 17. Nd5 {[%clk 0:01:39.9]} 17... e6 {[%clk 0:02:21.6]} 18. Nc7
{[%clk 0:01:40.2]} 18... Rac8 {[%clk 0:02:16.3]} 19. Nb5 {[%clk 0:01:39.7]}
19... Bxb2 {[%clk 0:02:13.2]} 20. Rxa7 {[%clk 0:01:39.5]} 20... Rfd8 {[%clk
0:02:05.5]} 21. e5 {[%clk 0:01:22.3]} 21... Bxe5 {[%clk 0:02:00.3]} 22. Bxb7
{[%clk 0:01:22.3]} 22... Nxb7 {[%clk 0:01:52.9]} 23. Rxb7 {[%clk 0:01:23.2]}
23... Bf6 {[%clk 0:01:43]} 24. Rd3 {[%clk 0:01:22.8]} 24... d5 {[%clk
0:01:42.2]} 25. Kg2 {[%clk 0:01:21.3]} 25... dxc4 {[%clk 0:01:29.9]} 26. Rxd8+
{[%clk 0:01:21.1]} 26... Rxd8 {[%clk 0:01:27.6]} 27. bxc4 {[%clk 0:01:21.3]}
27... Kf8 {[%clk 0:01:26.5]} 28. c5 {[%clk 0:01:20.4]} 28... Rd2 {[%clk
0:01:01.9]} 29. c6 {[%clk 0:01:18]} 29... Be5 {[%clk 0:01:02]} 30. c7 {[%clk
0:01:14.3]} 30... Bxc7 {[%clk 0:00:59.2]} 31. Rxc7 {[%clk 0:01:14.5]} 31... Rd5
{[%clk 0:00:58]} 32. Nc3 {[%clk 0:01:14.5]} 32... Rd4 {[%clk 0:00:58.3]} 33. Ne2
{[%clk 0:01:14.4]} 33... Rd2 {[%clk 0:00:57.4]} 34. Nf4 {[%clk 0:01:14.3]} 34...
h5 {[%clk 0:00:56.9]} 35. Nh3 {[%clk 0:01:13.6]} 35... Rd5 {[%clk 0:00:55.9]}
36. f4 {[%clk 0:01:11.3]} 36... Rd2+ {[%clk 0:00:54.7]} 37. Nf2 {[%clk
0:01:11.5]} 37... Kg7 {[%clk 0:00:52]} 38. Kf3 {[%clk 0:01:11.9]} 38... Ra2
{[%clk 0:00:51]} 39. Rd7 {[%clk 0:01:11.1]} 39... Kf8 {[%clk 0:00:49.8]} 40. h3
{[%clk 0:01:08.6]} 40... Ra3+ {[%clk 0:00:47.3]} 41. Rd3 {[%clk 0:01:07.6]}
41... Ra1 {[%clk 0:00:45.4]} 42. Ne4 {[%clk 0:01:07.3]} 42... Rf1+ {[%clk
0:00:45.4]} 43. Ke2 {[%clk 0:01:04.5]} 43... Rh1 {[%clk 0:00:44.9]} 44. g4
{[%clk 0:01:04]} 44... hxg4 {[%clk 0:00:44.3]} 45. hxg4 {[%clk 0:01:04.9]} 45...
Rg1 {[%clk 0:00:42.4]} 46. Rg3 {[%clk 0:00:55.2]} 46... Ra1 {[%clk 0:00:39.7]}
47. Rd3 {[%clk 0:00:55.1]} 47... f5 {[%clk 0:00:37.1]} 48. Ng5 {[%clk
0:00:50.3]} 48... fxg4 {[%clk 0:00:35.6]} 49. Nxe6+ {[%clk 0:00:49.7]} 49... Ke7
{[%clk 0:00:35.8]} 50. Ng5 {[%clk 0:00:49.5]} 50... Kf6 {[%clk 0:00:35.9]} 51.
Ke3 {[%clk 0:00:48.4]} 51... Re1+ {[%clk 0:00:34.3]} 52. Kf2 {[%clk 0:00:48.2]}
52... Ra1 {[%clk 0:00:33.5]} 53. Kg3 {[%clk 0:00:48]} 53... Rg1+ {[%clk
0:00:32.7]} 54. Kf2 {[%clk 0:00:48.2]} 54... Ra1 {[%clk 0:00:31.6]} 55. Rd5
{[%clk 0:00:46.5]} 55... Ra3 {[%clk 0:00:29.5]} 56. Ne4+ {[%clk 0:00:46.1]}
56... Ke7 {[%clk 0:00:28.5]} 57. Re5+ {[%clk 0:00:46]} 57... Kf7 {[%clk
0:00:27.7]} 58. Rg5 {[%clk 0:00:42.6]} 58... Rf3+ {[%clk 0:00:26.7]} 59. Kg2
{[%clk 0:00:41.4]} 59... Rxf4 {[%clk 0:00:26.4]} 60. Nf2 {[%clk 0:00:40.8]}
60... Kf6 {[%clk 0:00:24.7]} 61. Ra5 {[%clk 0:00:40.7]} 61... Rd4 {[%clk
0:00:22.3]} 62. Kg3 {[%clk 0:00:38.4]} 62... Ke7 {[%clk 0:00:19.2]} 63. Nxg4
{[%clk 0:00:38.6]} 63... Rb4 {[%clk 0:00:19]} 64. Rg5 {[%clk 0:00:36.2]} 64...
Kf7 {[%clk 0:00:18.3]} 65. Ne5+ {[%clk 0:00:30.8]} 65... Kf6 {[%clk 0:00:17.8]}
66. Nf3 {[%clk 0:00:31.7]} 66... Re4 {[%clk 0:00:14.6]} 67. Ra5 {[%clk
0:00:31.3]} 67... Rb4 {[%clk 0:00:14.3]} 68. Ra6+ {[%clk 0:00:29.1]} 68... Kf5
{[%clk 0:00:13.8]} 69. Nh4+ {[%clk 0:00:29.3]} 69... Ke4 {[%clk 0:00:14.3]} 70.
Rxg6 {[%clk 0:00:29]} 70... Rb3+ {[%clk 0:00:14.5]} 71. Kg4 {[%clk 0:00:29.3]}
71... Rb1 {[%clk 0:00:15]} 72. Ng2 {[%clk 0:00:27.9]} 72... Rf1 {[%clk
0:00:11.9]} 73. Re6+ {[%clk 0:00:27.8]} 73... Kd4 {[%clk 0:00:12.1]} 74. Nf4
{[%clk 0:00:26.6]} 74... Rg1+ {[%clk 0:00:12.1]} 75. Kf3 {[%clk 0:00:26.7]}
75... Rf1+ {[%clk 0:00:12.2]} 76. Kg3 {[%clk 0:00:27.3]} 76... Rg1+ {[%clk
0:00:11.7]} 77. Kf2 {[%clk 0:00:27.5]} 77... Ra1 {[%clk 0:00:11.1]} 78. Ne2+
{[%clk 0:00:26.1]} 78... Kd5 {[%clk 0:00:10.3]} 79. Re3 {[%clk 0:00:26.3]} 79...
Ra2 {[%clk 0:00:08.2]} 80. Kf3 {[%clk 0:00:26.5]} 80... Ra8 {[%clk 0:00:07.6]}
81. Nf4+ {[%clk 0:00:26.5]} 81... Kd6 {[%clk 0:00:05.3]} 82. Re6+ {[%clk
0:00:26.5]} 82... Kc5 {[%clk 0:00:05.2]} 83. Ke4 {[%clk 0:00:26.1]} 83... Ra1
{[%clk 0:00:04.9]} 84. Ne2 {[%clk 0:00:25.5]} 84... Ra4+ {[%clk 0:00:04]} 85.
Ke5 {[%clk 0:00:25.4]} 85... Ra3 {[%clk 0:00:02.6]} 86. Kf4 {[%clk 0:00:23.5]}
86... Ra4+ {[%clk 0:00:02.7]} 87. Kf3 {[%clk 0:00:23.5]} 87... Ra3+ {[%clk
0:00:03]} 88. Ke4 {[%clk 0:00:23.5]} 88... Ra4+ {[%clk 0:00:03.2]} 89. Kd3
{[%clk 0:00:23.9]} 89... Rh4 {[%clk 0:00:03.2]} 90. Re5+ {[%clk 0:00:21.7]}
90... Kd6 {[%clk 0:00:01.9]} 91. Rg5 {[%clk 0:00:21.8]} 91... Rh3+ {[%clk
0:00:02]} 92. Ng3 {[%clk 0:00:21.8]} 92... Ke6 {[%clk 0:00:01.1]} 93. Kd4 {[%clk
0:00:22.1]} 93... Rh4+ {[%clk 0:00:01.5]} 94. Ne4 {[%clk 0:00:22.2]} 1-0